bitfinex/quotes_SOLUSD_20220130
["timestamp","ask_amount","ask_price","bid_price","bid_amount"]
[1643573266949,13.09,91.89,91.77,13.09]
[1643573267146,1.4627164,91.876,91.75,13.09]
[1643573267345,16.349,91.84,91.75,13.09]
[1643573267544,16.349,91.84,91.747,33.73531532]
[1643573267745,29.439,91.84,91.747,33.73531532]
[1643573267949,11.59756369,91.839,91.747,33.73531532]
[1643573268145,1.4627164,91.838,91.715,16.5558]
[1643573268346,1.4627164,91.817,91.715,16.5558]
[1643573268545,16.361,91.79,91.715,16.5558]
[1643573268946,2.95669142,91.789,91.65,13.09]
[1643573269146,13.09,91.78,91.7,34.99152016]
[1643573269548,2.95669142,91.779,91.7,34.99152016]
[1643573270045,16.365,91.77,91.7,34.99152016]
[1643573270246,108.2,91.769,91.7,34.99152016]
[1643573270445,111.15669142,91.769,91.64,13.09]
[1643573270649,111.15669142,91.769,91.641,0.25]
[1643573271249,108.2,91.769,91.641,0.25]
[1643573271445,13.09,91.77,91.642,48.38592295]
[1643573271845,13.09,91.79,91.643,48.73881862]
[1643573272047,13.09,91.79,91.645,108.2]
[1643573272247,108.2,91.789,91.645,108.2]
[1643573272447,114.19651395,91.789,91.645,108.2]
[1643573272747,1.4627164,91.787,91.646,2.08731862]
[1643573272947,1.4627164,91.787,91.66,13.09]
[1643573273150,16.364,91.75,91.66,13.09]
[1643573273348,16.364,91.75,91.661,0.25]
[1643573273550,16.364,91.75,91.661,2.33731862]
[1643573273748,16.364,91.75,91.662,2.08731862]
[1643573274148,16.364,91.75,91.663,0.25]
[1643573274349,15.864,91.75,91.663,0.25]
[1643573274549,16.362,91.77,91.664,2.08167169]
[1643573274949,16.362,91.77,91.665,0.25]
[1643573275155,16.362,91.77,91.664,2.08167169]
[1643573275350,16.362,91.77,91.614,16.4493]
[1643573275351,20.19893766,91.769,91.65,13.09]
[1643573275552,20.19893766,91.769,91.614,16.4493]
[1643573275553,16.369,91.74,91.64,13.09]
[1643573275751,29.829,91.74,91.62,13.09]
[1643573276349,29.829,91.74,91.621,24.3276]
[1643573277150,16.369,91.73,91.621,24.3276]
[1643573277850,15.869,91.73,91.621,24.3276]
[1643573278451,2.95669142,91.729,91.621,24.3276]
[1643573278654,16.372,91.71,91.621,24.3276]
[1643573279254,2.95669142,91.739,91.643,0.25]
[1643573279454,1.4627164,91.759,91.643,2.08167169]
[1643573279656,1.4627164,91.757,91.643,49.42297169]
[1643573279853,1.4627164,91.757,91.644,2.08167169]
[1643573280356,1.4627164,91.757,91.645,0.25]
[1643573280555,1.4627164,91.758,91.645,0.25]
[1643573280760,2.95669142,91.756,91.645,0.25]
[1643573281156,16.369,91.73,91.645,0.25]
[1643573282358,1.4627164,91.767,91.646,2.08167169]
[1643573282664,116.19015858,91.87,91.646,2.08167169]
[1643573282665,1.4627164,91.786,91.668,0.30036019]
[1643573282857,1.4627164,91.789,91.68,13.09]
[1643573283057,1.4627164,91.808,91.697,0.32421166]
[1643573283259,16.355,91.8,91.697,0.32421166]
[1643573283488,16.355,91.8,91.71,13.09]
[1643573283656,16.355,91.8,91.711,34.05939924]
[1643573284659,1.4627164,91.799,91.711,34.05939924]
[1643573284858,16.355,91.8,91.711,34.05939924]
[1643573285861,16.355,91.8,91.712,0.25]
[1643573287762,16.355,91.8,91.711,34.05939924]
[1643573289363,16.355,91.8,91.712,0.25]
[1643573290871,16.355,91.8,91.712,108.2]
[1643573292392,16.355,91.8,91.711,34.05939924]
[1643573292592,19.31169142,91.8,91.711,34.05939924]
[1643573292791,11.16260118,91.799,91.692,73.3294]
[1643573292992,16.362,91.76,91.65,13.09]
[1643573293191,16.362,91.76,91.669,72.5504]
[1643573293394,16.362,91.76,91.669,72.8004]
[1643573293791,2.95669142,91.759,91.67,44.46532268]
[1643573293991,16.362,91.76,91.67,44.46532268]
[1643573294192,16.362,91.76,91.671,0.25]
[1643573294592,16.362,91.76,91.67,44.46532268]
[1643573295998,16.362,91.76,91.671,2.33167169]
[1643573296195,16.362,91.76,91.671,110.53167169]
[1643573298399,16.362,91.76,91.671,110.28167169]
[1643573298606,16.362,91.76,91.671,108.2]
[1643573298798,16.362,91.76,91.672,0.25]
[1643573299199,1.4627164,91.767,91.673,17.79478962]
[1643573299399,1.4627164,91.778,91.695,0.30455158]
[1643573299599,1.4627164,91.785,91.695,0.30455158]
[1643573299799,1.4627164,91.785,91.701,33.34068597]
[1643573300098,13.09,91.85,91.701,33.34068597]
[1643573300099,1.4627164,91.807,91.721,0.31315532]
[1643573300299,1.4627164,91.807,91.73,16.349]
[1643573300501,1.4627164,91.811,91.731,36.64544571]
[1643573300701,1.4627164,91.809,91.731,36.64544571]
[1643573300899,1.4627164,91.805,91.732,2.33167169]
[1643573301103,1.4627164,91.805,91.732,26.88747169]
[1643573301304,1.4627164,91.806,91.733,110.28167169]
[1643573301501,1.4627164,91.806,91.743,6.0]
[1643573301703,1.4627164,91.813,91.743,6.0]
[1643573301907,4.45378711,91.858,91.759,0.30209753]
[1643573302101,2.876053,91.863,91.76,13.09]
[1643573302302,2.876053,91.876,91.761,0.25]
[1643573302501,2.876053,91.894,91.783,0.30675344]
[1643573302703,16.338,91.9,91.801,108.2]
[1643573303003,0.2,91.899,91.802,40.2872175]
[1643573303202,2.876053,91.907,91.804,108.2]
[1643573303401,2.876053,91.907,91.805,0.25]
[1643573303604,2.876053,91.911,91.805,0.25]
[1643573304002,2.94222862,91.928,91.81,16.335]
[1643573304003,16.335,91.91,91.81,16.335]
[1643573304201,3.14222862,91.909,91.81,16.335]
[1643573304402,0.2,91.909,91.811,0.25]
[1643573304603,2.876053,91.922,91.811,0.25]
[1643573304802,2.876053,91.923,91.811,0.25]
[1643573305302,14.54411601,91.922,91.811,0.25]
[1643573305503,3.076053,91.921,91.811,0.25]
[1643573305703,16.334,91.92,91.811,0.25]
[1643573305903,0.2,91.919,91.805,0.25]
[1643573306206,14.80408303,91.919,91.805,0.25]
[1643573306403,0.2,91.918,91.805,0.25]
[1643573306803,17.24224624,91.918,91.805,0.25]
[1643573307005,16.336,91.91,91.805,0.25]
[1643573307203,0.2,91.909,91.805,0.25]
[1643573307604,0.2,91.917,91.805,0.25]
[1643573308805,0.2,91.917,91.804,108.2]
[1643573309003,16.337,91.9,91.804,108.2]
[1643573309203,0.2,91.899,91.804,108.2]
[1643573309404,0.2,91.899,91.803,22.5076]
[1643573309804,2.876053,91.911,91.803,22.5076]
[1643573310004,2.95669142,91.899,91.802,40.0372175]
[1643573310804,16.339,91.89,91.802,40.0372175]
[1643573311010,0.2,91.889,91.802,40.0372175]
[1643573311206,2.95669142,91.889,91.802,40.0372175]
[1643573311808,16.342,91.88,91.802,40.0372175]
[1643573313409,54.478,91.89,91.802,40.0372175]
[1643573313410,16.343,91.87,91.802,40.0372175]
[1643573315110,16.343,91.87,91.782,23.5596]
[1643573315310,16.343,91.87,91.783,0.25]
[1643573315510,16.343,91.87,91.782,23.5596]
[1643573315910,16.343,91.87,91.783,0.25]
[1643573316110,16.343,91.87,91.783,45.37527635]
[1643573317311,16.343,91.87,91.783,45.12527635]
[1643573318312,2.95669142,91.869,91.783,45.12527635]
[1643573318517,16.349,91.85,91.783,45.12527635]
[1643573320119,16.349,91.85,91.744,16.0657]
[1643573320321,16.349,91.85,91.745,0.25]
[1643573320519,108.2,91.849,91.745,0.25]
[1643573320722,16.351,91.82,91.745,0.25]
[1643573321323,16.351,91.82,91.736,0.25]
[1643573322025,16.351,91.82,91.735,38.98959266]
[1643573322422,29.441,91.82,91.735,38.98959266]
[1643573324528,16.359,91.79,91.692,24.6359]
[1643573324748,16.359,91.79,91.693,0.25]
[1643573325349,16.359,91.79,91.693,34.83537302]
[1643573325549,16.359,91.79,91.694,108.2]
[1643573325853,16.354,91.8,91.695,0.25]
[1643573326051,16.354,91.8,91.695,2.33167169]
[1643573326253,16.354,91.8,91.696,2.08167169]
[1643573326449,13.09,91.83,91.7,13.09]
[1643573326749,16.352,91.81,91.72,16.351]
[1643573326949,16.352,91.81,91.722,39.84734408]
[1643573327154,13.09,91.83,91.723,108.2]
[1643573327448,2.876053,91.856,91.723,108.45]
[1643573327649,2.876053,91.856,91.723,110.53167169]
[1643573327849,2.876053,91.861,91.724,2.08167169]
[1643573328250,13.09,91.86,91.725,0.25]
[1643573328650,15.966053,91.86,91.726,2.08031753]
[1643573328850,15.966053,91.86,91.727,0.25]
[1643573329050,16.349,91.83,91.73,16.35]
[1643573329355,16.349,91.83,91.731,108.45]
[1643573329550,16.349,91.83,91.731,110.53031753]
[1643573329853,16.349,91.83,91.732,2.08031753]
[1643573330051,16.349,91.83,91.733,22.5015]
[1643573330253,16.349,91.83,91.734,108.2]
[1643573330451,16.349,91.83,91.734,110.28031753]
[1643573331152,16.349,91.83,91.741,34.80315522]
[1643573331355,16.349,91.83,91.742,108.45]
[1643573331552,16.349,91.83,91.742,110.53031753]
[1643573331754,16.347,91.85,91.742,110.53031753]
[1643573331954,16.347,91.85,91.743,2.08031753]
[1643573332153,2.876053,91.868,91.751,108.2]
[1643573332356,2.9470319,91.866,91.752,0.25]
[1643573332553,2.9470319,91.866,91.752,2.33031753]
[1643573332854,2.9470319,91.866,91.753,2.08031753]
[1643573333055,16.345,91.85,91.755,45.05864863]
[1643573333354,16.345,91.85,91.756,0.25]
[1643573334354,16.345,91.85,91.756,108.45]
[1643573337055,16.345,91.85,91.76,16.345]
[1643573337257,16.345,91.85,91.761,0.25]
[1643573338457,16.345,91.85,91.757,0.25]
[1643573338659,16.345,91.85,91.756,108.2]
[1643573338860,16.345,91.85,91.757,0.25]
[1643573339657,16.345,91.85,91.756,108.2]
[1643573339858,16.345,91.85,91.755,45.05864863]
[1643573340468,16.352,91.83,91.755,45.05864863]
[1643573341262,16.352,91.83,91.756,0.25]
[1643573342159,16.352,91.83,91.755,45.05864863]
[1643573343063,16.352,91.83,91.723,16.1468]
[1643573343264,13.09,91.82,91.677,3.0291462]
[1643573343502,13.09,91.82,91.699,46.4363]
[1643573343503,16.358,91.79,91.699,46.4363]
[1643573344062,16.358,91.79,91.7,37.72565524]
[1643573344264,16.358,91.79,91.701,0.25]
[1643573344462,16.358,91.79,91.7,37.72565524]
[1643573346065,29.448,91.79,91.7,37.72565524]
[1643573346666,16.358,91.79,91.7,37.72565524]
[1643573346866,15.71,91.78,91.7,37.72565524]
[1643573347068,108.2,91.759,91.7,37.72565524]
[1643573347266,108.2,91.759,91.66,16.1756]
[1643573347870,15.71,91.77,91.66,16.1756]
[1643573348069,16.369,91.75,91.66,16.1756]
[1643573348267,16.369,91.75,91.661,33.00480588]
[1643573348667,16.369,91.75,91.662,0.25]
[1643573350272,16.361,91.76,91.663,19.77471826]
[1643573350469,16.361,91.76,91.665,108.2]
[1643573350671,2.876053,91.811,91.67,16.361]
[1643573350870,196.4,91.82,91.685,0.30460517]
[1643573350871,2.94271441,91.817,91.685,0.30460517]
[1643573351170,16.35,91.82,91.7,15.71]
[1643573351372,2.876053,91.849,91.713,0.30830376]
[1643573351571,2.876053,91.857,91.738,0.30126501]
[1643573351769,2.876053,91.857,91.74,15.71]
[1643573352070,2.876053,91.865,91.75,16.346]
[1643573352272,2.876053,91.866,91.751,0.25]
[1643573352469,2.876053,91.868,91.751,108.45]
[1643573352871,2.876053,91.869,91.751,108.45]
[1643573353069,16.347,91.84,91.751,108.45]
[1643573353569,16.347,91.84,91.751,108.2]
[1643573354169,2.876053,91.869,91.751,108.2]
[1643573354371,2.876053,91.869,91.762,44.2730879]
[1643573354570,2.876053,91.879,91.77,15.71]
[1643573354772,2.876053,91.879,91.771,108.45]
[1643573354972,54.48,91.88,91.771,117.77]
[1643573355174,2.876053,91.882,91.771,9.57]
[1643573355374,2.876053,91.877,91.771,0.25]
[1643573355573,16.343,91.86,91.771,0.25]
[1643573356472,16.343,91.86,91.763,0.25]
[1643573357073,16.343,91.86,91.762,44.2730879]
[1643573358277,13.09,91.85,91.762,44.2730879]
[1643573358503,16.355,91.83,91.71,431.44322631]
[1643573358678,29.445,91.83,91.71,431.44322631]
[1643573359479,29.445,91.83,91.713,40.49816651]
[1643573359878,2.94405508,91.829,91.713,40.49816651]
[1643573360080,16.358,91.8,91.713,40.49816651]
[1643573360481,16.358,91.8,91.714,0.25]
[1643573360680,16.358,91.8,91.714,2.33031753]
[1643573360877,16.358,91.8,91.714,110.53031753]
[1643573361079,16.352,91.81,91.715,2.08031753]
[1643573361279,16.352,91.81,91.72,16.352]
[1643573361482,16.352,91.81,91.721,108.2]
[1643573361780,54.51,91.83,91.721,110.53031753]
[1643573361981,54.51,91.83,91.722,2.08031753]
[1643573362182,2.876053,91.849,91.731,6.0]
[1643573362383,9.02,91.867,91.74,13.09]
[1643573362384,2.876053,91.862,91.74,13.09]
[1643573362581,9.02,91.867,91.741,108.2]
[1643573362781,9.02,91.867,91.75,6.0]
[1643573362986,2.876053,91.877,91.76,13.09]
[1643573363182,16.343,91.86,91.752,70.6835]
[1643573363385,16.343,91.86,91.76,13.09]
[1643573363785,16.343,91.86,91.761,0.25]
[1643573363986,16.343,91.86,91.77,16.344]
[1643573364285,16.343,91.86,91.772,108.2]
[1643573364684,16.343,91.86,91.773,0.25]
[1643573364885,16.343,91.86,91.771,44.0920547]
[1643573366110,16.343,91.86,91.772,108.2]
[1643573366310,16.343,91.86,91.772,108.45]
[1643573367112,16.343,91.86,91.771,44.0920547]
[1643573367611,16.343,91.86,91.772,0.25]
[1643573368212,16.343,91.86,91.771,44.0920547]
[1643573368412,16.343,91.86,91.772,0.25]
[1643573369512,16.343,91.86,91.771,44.0920547]
[1643573369912,124.543,91.86,91.771,44.0920547]
[1643573372316,2.94387644,91.859,91.771,44.0920547]
[1643573372518,16.348,91.84,91.771,44.0920547]
[1643573380826,2.876053,91.848,91.771,44.0920547]
[1643573380827,2.95793992,91.839,91.771,44.0920547]
[1643573381021,16.35,91.83,91.771,44.0920547]
[1643573382824,16.35,91.83,91.772,0.25]
[1643573385928,16.35,91.83,91.771,44.0920547]
[1643573388627,16.347,91.84,91.771,44.0920547]
[1643573389929,2.9635279,91.839,91.771,44.0920547]
[1643573390129,16.347,91.84,91.771,44.0920547]
[1643573391229,2.876053,91.848,91.771,44.0920547]
[1643573391430,2.876053,91.848,91.772,0.25]
[1643573391630,2.96438397,91.849,91.772,0.25]
[1643573392632,16.346,91.84,91.771,44.0920547]
[1643573394232,16.346,91.84,91.772,0.25]
[1643573394432,16.346,91.84,91.771,44.0920547]
[1643573394631,16.346,91.84,91.772,0.25]
[1643573395433,16.346,91.84,91.771,44.0920547]
[1643573395833,2.96422086,91.839,91.771,44.0920547]
[1643573396031,16.353,91.82,91.771,44.0920547]
[1643573397533,16.348,91.83,91.771,44.0920547]
[1643573397734,2.876053,91.843,91.771,44.0920547]
[1643573398032,2.876053,91.846,91.771,44.0920547]
[1643573398433,67.575,91.87,91.772,0.25]
[1643573398434,2.96409184,91.842,91.772,0.25]
[1643573398633,2.876053,91.85,91.772,0.25]
[1643573399034,16.345,91.85,91.772,0.25]
[1643573399234,2.96409184,91.849,91.772,0.25]
[1643573399436,2.96409184,91.849,91.771,44.0920547]
[1643573399735,2.876053,91.848,91.771,44.0920547]
[1643573400234,5.84014484,91.849,91.771,44.0920547]
[1643573400634,16.346,91.84,91.771,44.0920547]
[1643573400934,2.96409184,91.839,91.771,44.0920547]
[1643573401336,2.876053,91.842,91.771,44.0920547]
[1643573401736,2.876053,91.846,91.771,44.0920547]
[1643573401935,2.96409184,91.841,91.771,44.0920547]
[1643573402135,16.348,91.83,91.771,44.0920547]
[1643573402338,2.876053,91.845,91.771,44.0920547]
[1643573402534,2.876053,91.846,91.771,44.0920547]
[1643573402737,2.876053,91.847,91.771,44.0920547]
[1643573403136,2.876053,91.846,91.771,44.0920547]
[1643573403336,16.346,91.84,91.743,11.0]
[1643573403737,54.507,91.83,91.743,11.0]
[1643573404138,2.96308826,91.829,91.743,11.0]
[1643573404338,16.352,91.81,91.744,39.71027461]
[1643573404736,16.352,91.81,91.745,0.25]
[1643573406139,16.352,91.81,91.744,39.46027461]
[1643573408141,54.507,91.83,91.744,39.46027461]
[1643573408341,16.35,91.82,91.744,39.46027461]
[1643573409744,16.352,91.81,91.744,39.46027461]
[1643573412245,0.25,91.819,91.744,39.46027461]
[1643573413451,57.383053,91.83,91.744,39.46027461]
[1643573413850,2.96061483,91.829,91.744,39.46027461]
[1643573414052,16.351,91.81,91.744,39.46027461]
[1643573414977,16.351,91.81,91.745,0.25]
[1643573417278,0.25,91.809,91.745,0.25]
[1643573417581,0.25,91.809,91.744,39.46027461]
[1643573417779,16.353,91.8,91.744,39.46027461]
[1643573420280,0.25,91.809,91.744,39.46027461]
[1643573422183,1.48446698,91.806,91.744,39.46027461]
[1643573422383,1.48446698,91.805,91.744,39.46027461]
[1643573423384,1.48446698,91.805,91.75,16.349]
[1643573423585,1.48446698,91.813,91.75,16.349]
[1643573423783,1.48446698,91.815,91.751,108.45]
[1643573423984,1.48446698,91.817,91.751,108.45]
[1643573424385,1.48446698,91.816,91.76,16.346]
[1643573424586,1.48446698,91.817,91.761,81.86284669]
[1643573424785,1.48446698,91.819,91.761,82.11284669]
[1643573425186,1.48446698,91.82,91.761,82.11284669]
[1643573425385,1.48446698,91.82,91.761,81.86284669]
[1643573425788,1.48446698,91.819,91.761,81.86284669]
[1643573425986,1.73446698,91.819,91.761,81.86284669]
[1643573426386,1.48446698,91.818,91.761,81.86284669]
[1643573426986,1.73446698,91.819,91.761,81.86284669]
[1643573427188,1.73446698,91.819,91.77,16.345]
[1643573427387,0.25,91.819,91.771,0.25]
[1643573427790,0.25,91.819,91.771,2.33975722]
[1643573428187,0.25,91.819,91.771,108.45]
[1643573428387,0.25,91.83,91.78,16.342]
[1643573428595,1.48446698,91.832,91.781,37.04300424]
[1643573428789,1.48446698,91.835,91.782,23.8014]
[1643573428990,1.48446698,91.84,91.782,23.8014]
[1643573429193,1.48446698,91.84,91.783,0.25]
[1643573429590,1.48446698,91.839,91.783,0.25]
[1643573429992,0.25,91.838,91.783,0.25]
[1643573430193,0.25,91.838,91.783,108.45]
[1643573430391,1.48446698,91.842,91.783,108.45]
[1643573430590,0.25,91.841,91.783,0.25]
[1643573431391,1.48446698,91.843,91.783,0.25]
[1643573431592,0.25,91.842,91.783,0.25]
[1643573432192,1.48446698,91.845,91.783,0.25]
[1643573432395,0.25,91.844,91.79,16.342]
[1643573432593,0.4,91.965,91.79,16.342]
[1643573432594,1.48446698,91.858,91.791,108.2]
[1643573432794,1.48446698,91.861,91.791,133.34925722]
[1643573433195,1.48446698,91.863,91.791,131.2595]
[1643573433393,1.48446698,91.864,91.791,131.2595]
[1643573433594,1.48446698,91.864,91.8,16.339]
[1643573433796,0.25,91.863,91.801,0.25]
[1643573433995,0.25,91.863,91.791,22.8095]
[1643573434195,1.48446698,91.862,91.791,22.8095]
[1643573434396,1.48446698,91.859,91.791,22.8095]
[1643573434598,16.345,91.85,91.791,22.8095]
[1643573436000,16.345,91.85,91.75,15.71]
[1643573436197,16.351,91.82,91.745,47.6796]
[1643573436398,16.351,91.82,91.745,47.9296]
[1643573436998,16.351,91.82,91.746,40.01926704]
[1643573437602,0.25,91.819,91.746,40.01926704]
[1643573437799,16.351,91.81,91.746,40.01926704]
[1643573437999,16.351,91.81,91.756,6.0]
[1643573438000,0.001,91.81,91.756,6.0]
[1643573438199,0.001,91.81,91.76,15.71]
[1643573438400,0.001,91.81,91.761,108.45]
[1643573438604,0.001,91.81,91.771,6.0]
[1643573438804,0.001,91.81,91.78,16.343]
[1643573439203,0.001,91.81,91.781,0.25]
[1643573439603,0.001,91.81,91.774,108.2]
[1643573439805,0.001,91.81,91.774,0.25]
[1643573440004,0.001,91.81,91.775,23.5008]
[1643573440406,0.001,91.81,91.776,108.2]
[1643573440806,0.001,91.81,91.78,16.344]
[1643573441029,0.001,91.81,91.781,108.2]
[1643573442033,0.001,91.81,91.79,16.342]
[1643573442931,0.001,91.81,91.781,108.2]
[1643573443130,0.001,91.81,91.782,0.25]
[1643573443332,0.001,91.81,91.782,2.33975722]
[1643573443532,0.001,91.81,91.782,0.25]
[1643573444334,0.001,91.81,91.781,108.2]
[1643573444536,0.001,91.81,91.782,0.25]
[1643573446538,0.001,91.81,91.79,16.342]
[1643573446938,0.001,91.81,91.791,0.25]
[1643573447138,0.001,91.81,91.791,2.33975722]
[1643573447339,0.001,91.81,91.792,2.08975722]
[1643573447741,0.001,91.81,91.8,16.338]
[1643573449142,0.001,91.81,91.801,23.1924]
[1643573450142,0.001,91.81,91.802,108.2]
[1643573450342,0.001,91.81,91.801,23.1924]
[1643573452245,0.001,91.81,91.802,0.25]
[1643573453346,0.001,91.81,91.801,23.1924]
[1643573455349,0.001,91.81,91.802,0.25]
[1643573455749,0.001,91.81,91.802,108.45]
[1643573456349,0.001,91.81,91.803,2.08975722]
[1643573456750,0.001,91.81,91.804,0.25]
[1643573457150,0.001,91.81,91.805,2.08975722]
[1643573457355,0.001,91.81,91.806,0.25]
[1643573457752,0.001,91.81,91.807,2.08975722]
[1643573458156,0.001,91.81,91.808,0.25]
[1643573458352,0.001,91.81,91.809,108.2]
[1643573458553,0.001,91.81,91.809,110.28975722]
[1643573458756,0.001,91.81,91.809,110.53975722]
[1643573461583,1.48446698,91.892,91.81,45.34737448]
[1643573461780,0.2,91.925,91.81,45.34737448]
[1643573461781,1.48446698,91.902,91.811,0.25]
[1643573461981,1.48446698,91.902,91.821,108.2]
[1643573462183,1.48446698,91.905,91.822,24.383]
[1643573462381,1.48446698,91.906,91.831,6.0]
[1643573462585,1.48446698,91.908,91.84,15.71]
[1643573462881,1.48446698,91.912,91.86,16.326]
[1643573463082,1.48446698,91.916,91.862,37.02769873]
[1643573463284,2.876053,91.942,91.862,37.02769873]
[1643573463285,1.48446698,91.917,91.863,108.45]
[1643573463482,1.48446698,91.925,91.863,108.45]
[1643573463682,1.48446698,91.927,91.863,110.53975722]
[1643573463882,1.48446698,91.934,91.864,2.08959092]
[1643573464286,1.48446698,91.934,91.865,0.25]
[1643573464482,1.48446698,91.935,91.865,0.25]
[1643573464682,1.48446698,91.941,91.865,0.25]
[1643573464882,1.73446698,91.94,91.865,0.25]
[1643573465083,1.48446698,91.939,91.865,0.25]
[1643573465283,1.48446698,91.939,91.864,0.25]
[1643573465485,1.48446698,91.939,91.862,37.02769873]
[1643573465686,0.25,91.94,91.862,37.02769873]
[1643573465687,1.48446698,91.935,91.862,37.02769873]
[1643573465887,1.48446698,91.934,91.862,37.02769873]
[1643573466085,1.48446698,91.933,91.862,37.02769873]
[1643573466289,1.48446698,91.931,91.862,37.02769873]
[1643573466487,1.48446698,91.93,91.862,37.02769873]
[1643573466688,0.25,91.94,91.862,37.02769873]
[1643573466689,1.48446698,91.932,91.862,37.02769873]
[1643573466886,0.25,91.94,91.862,37.02769873]
[1643573466887,1.48446698,91.933,91.862,37.02769873]
[1643573467088,16.33,91.93,91.862,37.02769873]
[1643573467287,0.2,91.929,91.862,37.02769873]
[1643573467688,1.48446698,91.937,91.863,0.25]
[1643573467888,1.48446698,91.934,91.863,0.25]
[1643573468490,1.48446698,91.934,91.862,37.02769873]
[1643573468690,1.48446698,91.933,91.862,37.02769873]
[1643573468988,1.48446698,91.932,91.862,37.02769873]
[1643573469188,1.73446698,91.932,91.862,37.02769873]
[1643573469990,16.33,91.93,91.862,37.02769873]
[1643573470189,0.2,91.929,91.862,37.02769873]
[1643573472192,1.48446698,91.934,91.862,37.02769873]
[1643573473093,1.48446698,91.935,91.862,37.02769873]
[1643573474094,16.33,91.93,91.862,37.02769873]
[1643573474294,0.2,91.929,91.862,37.02769873]
[1643573475699,0.45,91.929,91.862,37.02769873]
[1643573476003,16.332,91.92,91.862,37.02769873]
[1643573476199,0.2,91.919,91.862,37.02769873]
[1643573477600,16.33,91.93,91.862,37.02769873]
[1643573477601,1.48446698,91.928,91.862,37.02769873]
[1643573477801,1.68446698,91.929,91.862,37.02769873]
[1643573478003,0.2,91.929,91.862,37.02769873]
[1643573478807,2.95669142,91.928,91.862,37.02769873]
[1643573479005,1.48446698,91.926,91.862,37.02769873]
[1643573479207,0.25,91.927,91.862,37.02769873]
[1643573480307,1.68446698,91.929,91.863,0.25]
[1643573480308,0.2,91.929,91.863,0.25]
[1643573480508,16.332,91.92,91.862,37.02769873]
[1643573480707,0.2,91.919,91.862,37.02769873]
[1643573480909,0.45,91.919,91.862,37.02769873]
[1643573481109,0.25,91.919,91.863,24.6749]
[1643573481307,1.73446698,91.929,91.863,24.9249]
[1643573481507,0.25,91.929,91.863,24.9249]
[1643573481906,0.25,91.93,91.863,24.6749]
[1643573482107,18.06446698,91.93,91.863,24.6749]
[1643573482306,1.48446698,91.928,91.863,24.6749]
[1643573482908,1.48446698,91.931,91.864,0.25]
[1643573483206,1.48446698,91.931,91.873,6.0]
[1643573483408,1.48446698,91.945,91.874,22.9392]
[1643573483611,1.48446698,91.954,91.882,40.76824732]
[1643573483810,1.48446698,91.955,91.883,0.25]
[1643573484011,1.48446698,91.95,91.883,0.25]
[1643573484209,1.48446698,91.949,91.883,0.25]
[1643573484810,1.48446698,91.951,91.883,0.25]
[1643573485010,17.81246698,91.95,91.882,40.76824732]
[1643573485214,1.48446698,91.947,91.882,40.76824732]
[1643573485815,1.48446698,91.947,91.883,0.25]
[1643573486040,1.48446698,91.957,91.892,6.0]
[1643573486242,1.48446698,91.957,91.893,108.2]
[1643573486443,0.25,91.956,91.893,108.45]
[1643573486840,0.25,91.959,91.895,108.2]
[1643573487045,1.48446698,91.96,91.897,108.2]